bitfinex-derivatives/quotes_BNBF0:USTF0_20250316
["timestamp","ask_amount","ask_price","bid_price","bid_amount"]
[1742166956298,0.33367256,599.39,598.1,0.30706785]
[1742166956496,0.27157162,599.38,598.1,0.30706785]
[1742166956697,0.3336837,599.37,598.1,0.64146009]
[1742166956897,0.27157162,599.36,598.11,0.30706785]
[1742166958297,0.27162172,599.35,598.12,0.30702407]
[1742166958500,0.27162172,599.36,598.11,0.30702407]
[1742166958703,0.27162172,599.35,598.12,0.30702407]
[1742166958901,0.27162172,599.36,598.11,0.30702407]
[1742166959105,0.27162172,599.35,598.12,0.30702407]
[1742166959302,0.3337004,599.34,598.11,0.30702407]
[1742166959506,0.27162172,599.33,598.12,0.30702407]
[1742166959809,0.33371153,599.32,598.13,0.30702407]
[1742166960006,0.27162172,599.31,598.1,0.33439224]
[1742166960308,0.33372267,599.3,598.1,0.33439224]
[1742166960507,0.27162172,599.29,598.1,0.33439224]
[1742166960707,0.33373381,599.28,598.1,0.33439224]
[1742166961208,0.27162172,599.27,598.1,0.33439224]
[1742166961605,0.33374495,599.26,598.1,0.33439224]
[1742166961807,0.27162172,599.25,598.1,0.33439224]
[1742166962110,0.60537224,599.25,598.1,0.33439224]
[1742166962304,0.27162172,599.24,598.1,0.33439224]
[1742166964309,0.33375052,599.25,598.1,0.33439224]
[1742166964504,0.27179789,599.24,598.1,0.33439224]
[1742166965504,0.27179789,599.24,598.11,0.465]
[1742166966108,0.27178281,599.23,598.11,0.465]
[1742166966503,0.27178281,599.24,598.11,0.465]
[1742166966703,0.27178281,599.22,598.11,0.465]
[1742166966903,0.33375052,599.25,598.11,0.465]
[1742166967109,0.27181565,599.24,598.11,0.465]
[1742166971112,0.27178753,599.23,598.11,0.465]
[1742166971311,0.27178753,599.22,598.11,0.465]
[1742166971510,0.27178753,599.21,598.11,0.465]
[1742166971705,0.27178753,599.24,598.11,0.465]
[1742166972008,0.27178753,599.23,598.11,0.465]
[1742166972207,0.27178753,599.24,598.11,0.465]
[1742166972409,0.27178753,599.23,598.12,0.33438106]
[1742166972610,0.27178753,599.22,598.12,0.33438106]
[1742166972810,0.27178753,599.24,598.12,0.33438106]
[1742166973013,0.27178753,599.23,598.12,0.33438106]
[1742166973312,0.27178753,599.22,598.12,0.33438106]
[1742166973510,0.2718961,599.21,598.12,0.33438106]
[1742166973712,0.2718961,599.24,598.12,0.33438106]
[1742166973909,0.2718961,599.23,598.12,0.33438106]
[1742166974108,0.2718961,599.24,598.12,0.33438106]
[1742166974310,0.2718961,599.23,598.12,0.33438106]
[1742166974515,0.2718961,599.24,598.12,0.33438106]
[1742166974714,0.2718961,599.23,598.12,0.33438106]
[1742166975012,0.2718961,599.22,598.12,0.33438106]
[1742166975214,0.33375052,599.25,598.12,0.33438106]
[1742166975409,0.27189719,599.24,598.12,0.33438106]
[1742166976516,0.27189719,599.24,598.13,0.30699976]
[1742166976911,0.27189719,599.24,598.14,0.33436987]
[1742166979120,0.27180482,599.23,598.14,0.33436987]
[1742166979421,0.27180482,599.22,598.14,0.33436987]
[1742166979619,0.27180482,599.24,598.14,0.33436987]
[1742166979816,0.27180482,599.23,598.14,0.33436987]
[1742166980015,0.27180482,599.24,598.14,0.33436987]
[1742166980218,0.27180482,599.23,598.14,0.33436987]
[1742166980513,0.27180482,599.22,598.15,0.30701171]
[1742166980715,0.33375052,599.25,598.14,0.33436987]
[1742166980916,0.27182051,599.21,598.16,0.30700804]
[1742166981122,0.27182051,599.2,598.17,0.30700804]
[1742166981316,0.27182051,599.24,598.17,0.30700804]
[1742166981516,0.27182051,599.23,598.18,0.33434752]
[1742166981720,0.27182051,599.24,598.19,0.30700804]
[1742166981923,0.27182051,599.23,598.2,0.33433634]
[1742166982125,0.27182051,599.24,598.21,0.30700804]
[1742166982321,0.27182051,599.23,598.22,0.33432516]
[1742166982622,0.33375052,599.25,598.22,0.33432516]
[1742166983322,0.27175972,599.24,598.23,0.30698156]
[1742166983521,0.27175972,599.24,598.23,0.64130113]
[1742166983921,0.27175972,599.24,598.24,0.30698156]
[1742166984317,0.27175972,599.24,598.25,0.33430839]
[1742166984517,2.85042137,599.65,598.25,0.33430839]
[1742166984717,0.60532507,599.64,598.26,0.30694158]
[1742166984923,0.60533063,599.63,598.27,0.33429722]
[1742166985224,0.60533619,599.62,598.28,0.30694158]
[1742166985429,0.60534176,599.61,598.28,0.64123321]
[1742166985624,2.85042137,599.66,598.29,0.30694158]
[1742166985625,2.52928485,599.56,598.29,0.30694158]
[1742166985822,0.27179162,599.55,598.29,0.30694158]
[1742166986021,0.27179162,599.55,598.28,0.33429163]
[1742166986617,0.27167647,599.54,598.29,0.30694599]
[1742166986822,0.27167647,599.55,598.29,0.30694599]
[1742166987125,0.27167647,599.54,598.28,0.33429163]
[1742166987321,0.27167647,599.55,598.28,0.33429163]
[1742166987524,0.27167647,599.55,598.29,0.30694163]
[1742166987926,0.27167647,599.55,598.28,0.33429163]
[1742166990324,0.27167647,599.55,598.29,0.3068892]
[1742166990525,0.27167647,599.55,598.3,0.33428046]
[1742166990726,0.27167647,599.55,598.31,0.30685405]
[1742166991727,0.27167647,599.55,598.33,0.3342637]
[1742166991925,0.27167647,599.55,598.34,0.30685405]
[1742166992127,0.27181664,599.54,598.36,0.33424694]
[1742166992331,0.3333,600.06,598.37,0.30679851]
[1742166992526,0.27182479,600.05,598.39,0.33423018]
[1742166992729,0.6051359,600.04,598.4,0.30679851]
[1742166992936,0.60514145,600.03,598.41,0.33421901]
[1742166993131,0.27182479,600.02,598.42,0.30679851]
[1742166993828,0.27186801,600.01,598.43,0.30673988]
[1742166994032,0.27186801,600.01,598.41,0.33421901]
[1742166994033,0.27186801,600.02,598.45,0.33419667]
[1742166994227,0.33331666,600.03,598.45,0.33419667]
[1742166994431,0.27186827,600.02,598.46,0.3067395]
[1742166995142,0.33332777,600.01,598.47,0.3341855]
[1742166995331,0.27186827,600.0,598.48,0.3067395]
[1742166995536,0.33333888,599.99,598.49,0.33417433]
[1742166995836,0.27186827,599.98,598.5,0.3067395]
[1742166996335,0.27186827,599.98,598.51,0.33416317]
[1742166996536,0.33335,599.97,598.52,0.3067395]
[1742166996736,0.27186827,599.96,598.53,0.334152]
[1742166996944,0.33336111,599.95,598.54,0.3067395]
[1742166997137,0.27186827,599.94,598.54,0.3067395]
[1742166997336,0.33337222,599.93,598.55,0.33414084]
[1742166997532,0.27186827,599.92,598.56,0.3067395]
[1742166997732,0.33338334,599.91,598.57,0.33412967]
[1742166997937,0.27186827,599.9,598.58,0.3067395]
[1742166998132,0.60525716,599.9,598.59,0.33411851]
[1742166998333,0.27186827,599.89,598.6,0.3067395]
[1742166998735,0.27186827,599.89,598.61,0.33410734]
[1742166998937,0.27186827,599.89,598.62,0.3067395]
[1742166999142,0.27186827,599.89,598.62,0.33410176]
[1742166999537,0.2719719,599.88,598.62,0.33410176]
[1742166999742,0.2719719,599.87,598.62,0.33410176]
[1742166999942,0.2719719,599.86,598.62,0.33410176]
[1742167000144,0.33338889,599.9,598.62,0.33410176]
[1742167000145,0.2719719,599.85,598.62,0.33410176]
[1742167000342,0.2719719,599.89,598.62,0.33410176]
[1742167000539,0.2719719,599.88,598.62,0.33410176]
[1742167000937,0.33340557,599.87,598.62,0.33410176]
[1742167001141,0.2719719,599.86,598.62,0.33410176]
[1742167001340,0.27200044,599.85,598.62,0.33410176]
[1742167001537,0.33342224,599.84,598.62,0.33410176]
[1742167001745,0.27200044,599.83,598.62,0.33410176]
[1742167002945,0.33343336,599.82,598.62,0.33410176]
[1742167003142,0.27194818,599.81,598.62,0.33410176]
[1742167003343,0.33344448,599.8,598.62,0.33410176]
[1742167003544,0.27194818,599.79,598.62,0.33410176]
[1742167004044,0.3334556,599.78,598.62,0.33410176]
[1742167004237,0.27194818,599.77,598.63,0.632]
[1742167004439,0.33346672,599.76,598.63,0.632]
[1742167004652,0.27194818,599.75,598.63,0.632]
[1742167004945,0.33347784,599.74,598.63,0.632]
[1742167005244,0.2719228,599.73,598.63,0.632]
[1742167005444,0.33348896,599.72,598.63,0.632]
[1742167005639,0.2719228,599.71,598.63,0.632]
[1742167005843,0.33350008,599.7,598.63,0.632]
[1742167006245,0.2719228,599.69,598.63,0.632]
[1742167006443,0.3335112,599.68,598.63,0.632]
[1742167006640,0.2719228,599.67,598.63,0.632]
[1742167006945,0.33352232,599.66,598.63,0.632]
[1742167007245,0.2719228,599.65,598.63,0.632]
[1742167007843,0.60545069,599.65,598.63,0.632]
[1742167008041,0.60545625,599.64,598.63,0.632]
[1742167008248,0.2719228,599.63,598.63,0.632]
[1742167009842,0.33354457,599.62,598.63,0.632]
[1742167010046,0.2719228,599.61,598.63,0.632]
[1742167010549,0.27179183,599.6,598.63,0.632]
[1742167010849,0.60535309,599.59,598.63,0.632]
[1742167011150,0.60535866,599.58,598.63,0.632]
[1742167011343,0.60536422,599.57,598.63,0.632]
[1742167011750,0.27179183,599.56,598.63,0.632]
[1742167011949,0.60536978,599.56,598.63,0.632]
[1742167012150,0.27179183,599.55,598.63,0.632]
[1742167012350,0.33358908,599.54,598.63,0.632]
[1742167012551,0.27179183,599.53,598.63,0.632]
[1742167012744,0.33360021,599.52,598.63,0.632]
[1742167012950,0.27179183,599.51,598.63,0.632]
[1742167013150,0.6053976,599.51,598.63,0.632]
[1742167013350,0.27179183,599.5,598.63,0.632]
[1742167014257,0.27187047,599.49,598.63,0.632]
[1742167014455,0.27187047,599.5,598.63,0.632]
[1742167014657,0.27187047,599.49,598.63,0.632]
[1742167014857,0.27187047,599.5,598.63,0.632]
[1742167015054,0.27187047,599.48,598.63,0.632]
[1742167015360,0.27187047,599.47,598.63,0.632]
[1742167015559,0.27187047,599.5,598.63,0.632]
[1742167015857,0.27187047,599.49,598.63,0.632]
[1742167016058,0.33360577,599.51,598.63,0.632]
[1742167016253,0.27187791,599.5,598.63,0.632]
[1742167017859,0.33360577,599.51,598.63,0.632]
[1742167017860,0.27186154,599.49,598.63,0.632]
[1742167018062,0.27186154,599.48,598.63,0.632]
[1742167018560,0.33360577,599.51,598.63,0.632]
[1742167018561,0.27186154,599.47,598.63,0.632]
[1742167018757,0.27186154,599.5,598.63,0.632]
[1742167018961,0.27186154,599.49,598.63,0.632]
[1742167019154,0.27186154,599.5,598.63,0.632]
[1742167019355,0.27186154,599.49,598.63,0.632]
[1742167019760,0.27186154,599.48,598.63,0.632]
[1742167019961,0.27186154,599.5,598.63,0.632]
[1742167020159,0.27186154,599.49,598.63,0.632]
[1742167020361,0.27186154,599.5,598.63,0.632]
[1742167020564,0.27186154,599.49,598.63,0.632]
[1742167020867,0.27186154,599.48,598.63,0.632]
[1742167021065,0.27186154,599.5,598.63,0.632]
[1742167021261,0.27186154,599.49,598.63,0.632]
[1742167021465,0.27186154,599.5,598.63,0.632]
[1742167021761,0.27202206,599.49,598.63,0.632]
[1742167021967,0.27202206,599.5,598.63,0.632]
[1742167022160,0.27202206,599.49,598.63,0.632]
[1742167022359,0.27202206,599.5,598.63,0.632]
[1742167022566,0.27202206,599.48,598.63,0.632]
[1742167022767,0.27202206,599.47,598.63,0.632]
[1742167022962,0.27202206,599.5,598.63,0.632]
[1742167023160,0.27202206,599.49,598.63,0.632]
[1742167023364,0.27202206,599.5,598.63,0.632]
[1742167023567,0.27202206,599.49,598.63,0.632]
[1742167023761,0.27202206,599.5,598.63,0.632]
[1742167023962,0.27202206,599.49,598.63,0.632]
[1742167024164,0.27202206,599.5,598.63,0.632]
[1742167024360,0.27202206,599.49,598.63,0.632]
[1742167024662,0.27202206,599.5,598.63,0.632]
[1742167024863,0.27202206,599.49,598.63,0.632]
[1742167029462,0.33361134,599.5,598.63,0.632]
[1742167029661,0.27214608,599.49,598.63,0.632]
[1742167029866,0.33361134,599.5,598.63,0.632]
[1742167030063,0.2721398,599.49,598.63,0.632]
[1742167031769,0.33361134,599.5,598.63,0.632]
[1742167032070,0.27217171,599.49,598.63,0.632]
[1742167033767,0.2721164,599.48,598.63,0.632]
[1742167034069,0.2721164,599.47,598.63,0.632]
[1742167034370,0.2721164,599.46,598.63,0.632]
[1742167034676,0.2721164,599.45,598.63,0.632]
[1742167034865,0.2721164,599.44,598.63,0.632]
[1742167035069,0.2721164,599.43,598.63,0.632]
[1742167035271,0.2721164,599.49,598.63,0.632]
[1742167035477,0.27217314,599.48,598.63,0.632]
[1742167035680,0.27217314,599.47,598.63,0.632]
[1742167035872,0.27217314,599.49,598.63,0.632]
[1742167036073,0.27217314,599.48,598.63,0.632]
[1742167036274,0.27217314,599.49,598.63,0.632]
[1742167036573,0.27217314,599.48,598.63,0.632]
[1742167036771,0.27217314,599.49,598.63,0.632]
[1742167036972,0.27217314,599.48,598.63,0.632]
[1742167037272,0.27217314,599.49,598.63,0.632]
[1742167037470,0.27217314,599.48,598.63,0.632]
[1742167037669,0.27217314,599.49,598.63,0.632]
[1742167037865,0.27217314,599.48,598.63,0.632]
[1742167038070,0.27217314,599.49,598.63,0.632]
[1742167038270,0.27217314,599.48,598.63,0.632]
[1742167038470,0.27217314,599.49,598.63,0.632]
[1742167039069,0.33361134,599.5,598.63,0.632]
[1742167039070,0.27212523,599.48,598.63,0.632]
[1742167039275,0.27212523,599.49,598.63,0.632]
[1742167039574,0.33361134,599.5,598.63,0.632]
[1742167039575,0.27212523,599.48,598.63,0.632]
[1742167039976,0.27212523,599.47,598.63,0.632]
[1742167040177,0.27212523,599.46,598.63,0.632]
[1742167040374,0.33361134,599.5,598.63,0.632]
[1742167040375,0.27212523,599.45,598.63,0.632]
[1742167040574,0.27212523,599.49,598.63,0.632]
[1742167040976,0.27206437,599.48,598.63,0.632]
[1742167041171,0.27206437,599.49,598.63,0.632]
[1742167041369,0.27206437,599.48,598.63,0.632]
[1742167041671,0.33361134,599.5,598.63,0.632]
[1742167041672,0.27206437,599.47,598.63,0.632]
[1742167041881,0.27206437,599.49,598.63,0.632]
[1742167042175,0.27206437,599.48,598.63,0.632]
[1742167042371,0.27206437,599.49,598.63,0.632]
[1742167042574,0.33361134,599.5,598.63,0.632]
[1742167042775,0.27205821,599.49,598.63,0.632]
[1742167046578,0.2719544,599.48,598.63,0.632]
[1742167046879,0.2719544,599.47,598.63,0.632]
[1742167047079,0.2719544,599.49,598.63,0.632]
[1742167047381,0.2719544,599.48,598.63,0.632]
[1742167047579,0.2719544,599.49,598.63,0.632]
[1742167047880,0.2719544,599.48,598.63,0.632]
[1742167048279,0.2719544,599.49,598.63,0.632]
[1742167048480,0.2719544,599.48,598.63,0.632]
[1742167048677,0.33361134,599.5,598.63,0.632]
[1742167050976,0.27192577,599.49,598.63,0.632]
[1742167051176,0.27192577,599.49,598.45,0.29049141]
[1742167051381,0.27192577,599.49,597.81,1.24829076]
[1742167051575,0.27192577,599.49,597.82,0.30694367]
[1742167051775,0.27192577,599.49,598.29,0.29068796]
[1742167051981,0.27192577,599.49,597.81,1.24829076]
[1742167055886,0.27192577,599.47,597.91,0.3344985]
[1742167056681,0.27192577,599.47,597.92,0.30709978]
[1742167057384,0.33362247,599.48,597.91,0.3344985]
[1742167057585,0.27181483,599.47,597.92,0.30709364]
[1742167057785,0.27181483,599.46,597.93,0.33448731]
[1742167057987,0.27181483,599.47,597.94,0.30709364]
[1742167058286,0.33363916,599.45,597.95,0.33447612]
[1742167058487,0.27181483,599.44,597.96,0.30709364]
[1742167058683,0.3336503,599.43,597.97,0.33446493]
[1742167058888,0.27181483,599.42,597.98,0.30709364]
[1742167059082,0.33366143,599.41,597.98,0.64155298]
[1742167059285,0.27181483,599.4,597.99,0.30709364]
[1742167059486,0.33367256,599.39,597.99,0.30709364]
[1742167059882,0.27181483,599.38,597.99,0.30709364]
[1742167060081,0.3336837,599.37,597.99,0.30709364]
[1742167060387,0.27181483,599.36,597.99,0.30709364]
[1742167060587,0.33369483,599.35,597.99,0.30709364]
[1742167060788,0.27181483,599.34,597.99,0.30709364]
[1742167060991,0.33370597,599.33,597.99,0.30709364]
[1742167061185,0.27181483,599.32,597.99,0.30709364]
[1742167061383,0.3337171,599.31,597.99,0.30709364]
[1742167061588,0.27181483,599.3,597.99,0.30709364]
[1742167061787,0.27181483,599.3,597.98,0.33445934]
[1742167061984,0.33372824,599.29,597.98,0.33445934]
[1742167062182,0.27181483,599.28,597.98,0.33445934]
[1742167062380,0.33373938,599.27,597.98,0.33445934]
[1742167062586,0.27181483,599.26,597.98,0.33445934]
[1742167062787,0.33375052,599.25,597.98,0.33445934]
[1742167062987,0.27181483,599.24,597.98,0.33445934]
[1742167063188,0.60554152,599.23,597.98,0.33445934]
[1742167063388,0.60554709,599.22,597.98,0.33445934]
[1742167063590,0.60555266,599.21,597.98,0.33445934]
[1742167063890,0.60555823,599.2,597.98,0.33445934]
[1742167064091,0.6055638,599.19,597.98,0.33445934]
[1742167064286,0.60556937,599.18,597.98,0.33445934]
[1742167064591,0.60557494,599.17,597.98,0.33445934]
[1742167064786,0.60558051,599.16,597.98,0.33445934]
[1742167064984,0.60556006,599.15,597.98,0.33445934]
[1742167065184,0.60556563,599.14,597.98,0.33445934]
[1742167065392,0.6055712,599.13,597.98,0.33445934]
[1742167065587,0.60557678,599.12,597.98,0.33445934]
[1742167065793,0.27175384,599.11,597.98,0.33445934]
[1742167066494,0.27175384,599.11,597.99,0.3071]
[1742167066892,0.27175384,599.11,597.99,0.64155375]
[1742167067097,0.27175384,599.11,598.0,0.64154816]
[1742167067295,0.27175384,599.11,598.01,0.64154256]
[1742167067497,0.27175384,599.11,597.93,0.29076204]
[1742167067498,0.27175384,599.11,598.02,0.33443697]
[1742167067696,0.27175384,599.11,598.03,0.3071]
[1742167067897,0.27175384,599.11,598.04,0.33442579]
[1742167068198,0.33382294,599.12,598.05,0.3071]
[1742167068400,0.33382294,599.12,598.06,0.3344146]
[1742167068599,0.33382294,599.12,598.07,0.3071]
[1742167069898,2.86256105,599.72,598.07,0.3071]
[1742167070195,0.27188284,599.71,598.07,0.3071]
[1742167070398,0.33350564,599.69,598.07,0.3071]
[1742167070698,0.27188284,599.68,598.08,0.33440342]
[1742167070894,0.33352232,599.66,598.09,0.3071]
[1742167071199,0.27188284,599.65,598.09,0.3071]
[1742167071894,0.27188284,599.65,598.1,0.33439224]
[1742167072099,0.27188284,599.65,598.11,0.3071]
[1742167072300,0.27188284,599.65,598.12,0.33438106]
[1742167072494,0.33353345,599.64,598.13,0.3071]
[1742167072799,0.27188284,599.63,598.14,0.33436987]
[1742167073001,0.33354457,599.62,598.15,0.3071]
[1742167073194,0.27188284,599.61,598.16,0.3343587]
[1742167073504,0.3335557,599.6,598.17,0.3071]
[1742167073703,0.27188284,599.59,598.18,0.33434752]
[1742167074001,0.33356683,599.58,598.19,0.3071]
[1742167074194,0.27188284,599.57,598.19,0.64144193]
[1742167074395,0.33357795,599.56,598.2,0.3071]
[1742167074599,0.27188284,599.55,598.2,0.3071]
[1742167074799,0.33358908,599.54,598.2,0.3071]
[1742167075000,0.27188284,599.53,598.2,0.3071]
[1742167075195,0.33360021,599.52,598.2,0.3071]
[1742167075396,0.27188284,599.51,598.2,0.3071]
[1742167075596,0.33361134,599.5,598.2,0.3071]
[1742167075799,0.27188284,599.49,598.2,0.3071]
[1742167076001,0.60555224,599.48,598.21,0.30696365]
[1742167076201,0.6055578,599.47,598.19,0.33434193]
[1742167076405,0.27192977,599.46,598.19,0.33434193]
[1742167076705,0.27192977,599.46,598.2,0.30696365]
[1742167077502,0.27192977,599.46,598.19,0.33434193]
[1742167079705,0.33363916,599.45,598.19,0.33434193]
[1742167080010,0.27192977,599.44,598.19,0.33434193]
[1742167080211,0.3336503,599.43,598.19,0.33434193]
[1742167080507,0.27192977,599.42,598.19,0.33434193]
[1742167081300,0.2719772,599.41,598.19,0.33434193]
[1742167081504,0.2719772,599.42,598.19,0.33434193]
[1742167081702,0.2719772,599.41,598.19,0.33434193]
[1742167081902,0.2719772,599.42,598.19,0.33434193]
[1742167082106,0.2719772,599.41,598.19,0.33434193]
[1742167082309,0.3336503,599.43,598.19,0.33434193]
[1742167082310,0.2719772,599.42,598.19,0.33434193]
[1742167084212,0.333667,599.4,598.19,0.33434193]
[1742167084413,0.2719772,599.39,598.19,0.33434193]
[1742167084607,0.33367813,599.38,598.19,0.33434193]
[1742167085011,0.2719772,599.37,598.19,0.33434193]
[1742167085311,0.33368926,599.36,598.19,0.33434193]
[1742167085706,0.27216357,599.35,598.19,0.33434193]
[1742167085914,0.3337004,599.34,598.19,0.33434193]
[1742167086109,0.27216357,599.33,598.19,0.33434193]
[1742167086615,0.33371153,599.32,598.19,0.33434193]
[1742167086916,0.27216357,599.31,598.19,0.33434193]
[1742167087116,0.33372267,599.3,598.19,0.33434193]
[1742167087312,0.27216357,599.29,598.19,0.33434193]
[1742167087516,0.33373381,599.28,598.19,0.33434193]
[1742167087710,0.27216357,599.27,598.19,0.33434193]
[1742167087913,0.33374495,599.26,598.19,0.33434193]
[1742167088111,0.27216357,599.25,598.19,0.33434193]
[1742167088314,0.33375609,599.24,598.19,0.33434193]
[1742167088716,0.27216357,599.23,598.19,0.33434193]
[1742167089017,0.60606256,599.22,598.19,0.33434193]
[1742167089213,0.27229533,599.21,598.19,0.33434193]
[1742167090916,0.27229165,599.2,598.19,0.33434193]
[1742167091110,0.27229165,599.21,598.19,0.33434193]
[1742167092717,0.33377837,599.2,598.19,0.33434193]
[1742167092916,0.27229165,599.19,598.02,0.565]
[1742167096314,0.33378951,599.18,598.02,0.565]
[1742167096512,0.27229165,599.17,598.02,0.565]
[1742167098420,0.33380065,599.16,598.02,0.565]
[1742167098718,0.27229165,599.15,598.02,0.565]
[1742167100119,0.33381179,599.14,598.02,0.565]
[1742167100319,0.27229165,599.13,598.02,0.565]
[1742167100720,0.33382294,599.12,598.02,0.565]
[1742167100921,0.27229165,599.11,598.02,0.565]
[1742167101413,0.33383408,599.1,598.02,0.565]
[1742167101617,0.27229165,599.09,598.02,0.565]
[1742167101817,0.33384522,599.08,598.02,0.565]
[1742167102018,0.27213179,599.07,598.02,0.565]
[1742167102214,0.33385637,599.06,598.02,0.565]
[1742167102414,0.27213179,599.05,598.02,0.565]
[1742167102614,0.33386752,599.04,598.02,0.565]
[1742167102822,0.27213179,599.03,598.02,0.565]
[1742167108123,0.60600488,599.03,598.02,0.565]
[1742167108322,0.27213179,599.02,598.02,0.565]
[1742167116225,0.33387309,599.03,598.02,0.565]
[1742167118229,0.27207328,599.02,598.03,0.30706571]
[1742167118729,0.33387309,599.03,597.93,0.29074261]
[1742167119030,0.27207705,599.02,597.94,0.64154674]
[1742167119228,0.27207705,599.02,597.95,0.64154114]
[1742167119523,0.27207705,599.02,597.96,0.30706502]
[1742167121028,0.27207705,599.02,597.97,0.509]
[1742167121225,0.33387309,599.03,597.98,0.30706502]
[1742167121423,0.33387309,599.03,597.99,0.33445375]
[1742167121629,0.33387309,599.03,598.0,0.30706502]
[1742167121824,0.33387309,599.03,598.01,0.33444256]
[1742167122029,0.33387309,599.03,598.02,0.30706502]
[1742167122723,0.33387309,599.03,598.03,0.33443138]
[1742167122925,0.33387309,599.03,598.04,0.30706502]
[1742167124029,2.85687211,599.62,598.05,0.33442019]
[1742167124224,0.60578429,599.61,598.06,0.30706502]
[1742167124429,0.60578429,599.61,598.07,0.33440901]
[1742167124625,0.27223415,599.6,598.08,0.30706502]
[1742167124830,0.27223415,599.6,598.09,0.33439783]
[1742167125031,0.33356683,599.58,598.1,0.30706502]
[1742167125331,0.27223415,599.57,598.1,0.30706502]
[1742167125531,0.33358352,599.55,598.09,0.33439783]
[1742167125831,0.27223415,599.54,598.09,0.33439783]
[1742167126027,0.33360021,599.52,598.09,0.33439783]
[1742167126225,0.27223415,599.51,598.09,0.33439783]
[1742167126427,0.3336169,599.49,598.09,0.33439783]
[1742167126624,0.27223415,599.48,598.09,0.33439783]
[1742167126830,0.3336336,599.46,598.09,0.33439783]
[1742167127026,0.27223415,599.45,598.09,0.33439783]
[1742167127231,0.3336503,599.43,598.09,0.33439783]
[1742167127628,0.27223415,599.42,598.09,0.33439783]
[1742167128927,0.33366143,599.41,598.09,0.33439783]
[1742167129134,0.27223415,599.4,598.09,0.33439783]
[1742167129933,0.33366143,599.41,598.09,0.33439783]
[1742167130131,0.27215568,599.4,598.09,0.33439783]
[1742167130334,0.33367256,599.39,598.09,0.33439783]
[1742167130537,0.27215568,599.38,598.09,0.33439783]
[1742167130836,0.3336837,599.37,598.09,0.33439783]
[1742167131138,0.27215568,599.36,598.09,0.33439783]
[1742167131435,0.33369483,599.35,598.09,0.33439783]
[1742167131637,0.27215568,599.34,598.09,0.33439783]
[1742167131931,0.33370597,599.33,598.09,0.33439783]
[1742167132135,0.27215568,599.32,598.09,0.33439783]
[1742167132336,0.3337171,599.31,598.09,0.33439783]
[1742167132536,0.27215568,599.3,598.09,0.33439783]
[1742167132736,0.33372824,599.29,598.09,0.33439783]
[1742167132939,0.27215568,599.28,598.09,0.33439783]
[1742167133134,0.60588949,599.28,598.09,0.33439783]
[1742167133335,0.27215568,599.27,598.09,0.33439783]
[1742167133838,0.27217167,599.26,598.09,0.33439783]
[1742167134034,0.27217167,599.27,598.09,0.33439783]
[1742167134337,0.27217167,599.27,598.1,0.30700634]
[1742167134637,0.27217167,599.27,598.1,0.64139858]
[1742167134834,0.27217167,599.27,598.11,0.30700634]
[1742167135635,0.33373381,599.28,598.1,0.33439224]
[1742167135835,0.27220761,599.27,598.11,0.30698937]
[1742167137037,0.27220761,599.27,598.12,0.33438106]
[1742167137233,0.27220761,599.27,598.13,0.30698937]
[1742167137431,0.33373381,599.28,598.14,0.33436987]
[1742167137636,0.27222375,599.27,598.15,0.30696765]
[1742167137836,0.27222375,599.27,598.16,0.3343587]
[1742167138036,0.27222375,599.27,598.17,0.30696765]
[1742167138237,0.27222375,599.27,598.18,0.33434752]
[1742167138539,0.27222375,599.27,598.19,0.30696765]
[1742167138743,0.27222375,599.27,598.19,0.64130958]
[1742167138939,0.27222375,599.27,598.2,0.30696765]
[1742167141239,0.27222375,599.27,598.19,0.33434193]
[1742167141642,0.33373381,599.28,598.19,0.33434193]
[1742167141835,0.2720796,599.27,598.19,0.33434193]
[1742167145540,0.2720796,599.27,598.2,0.30698859]
[1742167145740,0.2720796,599.27,598.19,0.33434193]
[1742167146241,0.2720796,599.27,598.2,0.30698462]
[1742167146840,0.2720796,599.27,598.2,0.64132096]
[1742167147042,0.2720796,599.27,598.21,0.30698462]
[1742167148242,0.33373381,599.28,598.2,0.33433634]
[1742167148442,0.27205208,599.27,598.21,0.30692965]
[1742167149043,0.27205208,599.27,598.22,0.33432516]
[1742167149239,0.27205208,599.27,598.23,0.30692965]
[1742167149747,0.27205208,599.27,598.24,0.33431398]
[1742167149946,0.27205208,599.27,598.25,0.30692965]
[1742167150945,0.27205208,599.27,598.26,0.33430281]
[1742167151249,0.27205208,599.27,598.27,0.30692965]
[1742167151451,2.52928485,599.82,598.28,0.33429163]
[1742167151752,0.33344448,599.8,598.29,0.30692965]
[1742167151948,0.27207665,599.79,598.29,0.30692965]
[1742167153149,0.33346116,599.77,598.29,0.64121569]
[1742167153349,0.27207665,599.76,598.3,0.30692965]